{"text_format":"1","workbook":"xlsx","n_sheets":1,"sheets":["Лист1"],"not_rendered":{"charts":1,"images":1,"macros":0,"external_links":0,"defined_names":0,"comments":0,"pivot_tables":0},"unopened":[],"bounds":{"document_bytes":16777216,"sheet_cells":100000,"rows_first":2000,"rows_last":500,"rows_between":2000,"halvings":0,"cell_chars":16384,"cell_head_chars":4096},"cells_cut":0,"cells_raw":0,"read":"whole","date_system":"1900"}

{"sheet":"Лист1","index":0,"n_rows":16,"n_cols":14,"rows_kept":16,"cut":false,"hidden":false,"merged":[[4,0,8,0],[9,0,15,0]]}
[]
[]
[]
[]
["ПП","ьппсавввчва",null,null,null,null,null,null,null,null,null,1,{"$f":"0.25*N5","v":0.25},1]
[null,"кпва",null,null,null,null,null,null,null,null,null,{"$f":"M5*1+L5","v":1.25},{"$f":"0.25*N6","v":0.5},2]
[null,"авпвап",null,null,null,null,null,null,null,null,null,{"$f":"M6*1+L6","v":1.75},0.25,1]
[null,"рпр",null,null,null,null,null,null,null,null,null,{"$f":"M7*1+L7","v":2},1.25,5]
[null,"пар",null,null,null,null,null,null,null,null,null,3.25,1,4]
["УУ","аива",null,null,null,null,null,null,null,null,null,4.25,0.25,1]
[null,"вапвап",null,null,null,null,null,null,null,null,null,4.5,2,8]
[null,"вапвап",null,null,null,null,null,null,null,null,null,6.5,0.5,2]
[null,"вапавп",null,null,null,null,null,null,null,null,null,7,1.5,6]
[null,"вапвап",null,null,null,null,null,null,null,null,null,8.5,0.75,3]
[null,"ооор",null,null,null,null,null,null,null,null,null,9.25,0.5,2]
[null,"орлрол",null,null,null,null,null,null,null,null,null,9.75,0.25,1]